fUST/lending_fUST_20250826
["ID","MTS","AMOUNT","RATE_DAILY","PERIOD"]
[381375338,1756163445346,-480.0,0.00041095,30]
[381375339,1756163445355,-480.0,0.00041095,30]
[381375340,1756163445365,-1467.38,0.00041095,30]
[381375341,1756163445376,-480.0,0.00041095,30]
[381375342,1756163445385,-1755.05,0.00041095,30]
[381375343,1756163445395,-480.0,0.00041095,30]
[381375344,1756163445405,-480.0,0.00041095,30]
[381375345,1756163445415,-480.0,0.00041095,30]
[381375346,1756163445424,-480.0,0.00041095,30]
[381375347,1756163445434,-1786.0,0.00041095,30]
[381375348,1756163445443,-480.0,0.00041095,30]
[381375349,1756163445453,-480.0,0.00041095,30]
[381375350,1756163445463,-480.0,0.00041095,30]
[381375351,1756163445473,-637.76,0.00041095,30]
[381375352,1756163445482,-2797.82,0.00041095,30]
[381375353,1756163445491,-480.0,0.00041095,30]
[381375354,1756163445501,-1611.55,0.00041095,30]
[381375355,1756163445511,-611.63,0.00041095,30]
[381375356,1756163445520,-667.69,0.00041095,30]
[381375357,1756163445530,-1979.83,0.00041095,30]
[381375358,1756163445539,-480.0,0.00041095,30]
[381375359,1756163445548,-796.83,0.00041095,30]
[381375360,1756163445557,-480.0,0.00041095,30]
[381375361,1756163445567,-2504.14,0.00041095,30]
[381375362,1756163445577,-2890.94,0.00041095,30]
[381375363,1756163445587,-480.0,0.00041095,30]
[381375364,1756163445596,-1000.0,0.00041095,2]
[381375365,1756163445606,-1000.0,0.00041095,2]
[381375366,1756163445615,-463.661193,0.00041095,2]
[381375367,1756163445625,-162.38815105,0.00041095,30]
[381375368,1756163445635,-967.21,0.00041095,30]
[381375369,1756163445644,-639.54,0.00041095,30]
[381375370,1756163445654,-480.0,0.00041095,30]
[381375371,1756163445664,-3137.66,0.00041095,30]
[381375372,1756163445674,-520.93,0.00041095,30]
[381375373,1756163445683,-480.0,0.00041095,30]
[381375374,1756163445693,-480.0,0.00041095,30]
[381375375,1756163445703,-480.0,0.00041095,30]
[381375376,1756163445714,-480.0,0.00041095,30]
[381375377,1756163445728,-1920.55,0.00041095,30]
[381375378,1756163445738,-1337.57,0.00041095,30]
[381375379,1756163445747,-1682.98,0.00041095,30]
[381375380,1756163445758,-620.61,0.00041095,30]
[381375381,1756163445767,-1839.67,0.00041095,30]
[381375382,1756163445778,-480.0,0.00041095,30]
[381375383,1756163445788,-480.0,0.00041095,30]
[381375384,1756163445797,-3423.27,0.00041095,30]
[381375385,1756163445807,-1167.46,0.00041095,30]
[381375386,1756163445817,-11783.47,0.00041095,30]
[381375387,1756163445826,-1981.85,0.00041095,30]
[381375388,1756163445836,-171.027442,0.00041095,30]
[381375389,1756163445845,-480.0,0.00041095,30]
[381375390,1756163445855,-480.0,0.00041095,30]
[381375391,1756163445864,-897.71,0.00041095,30]
[381375392,1756163445874,-1190.34,0.00041095,30]
[381375393,1756163445883,-1330.12,0.00041095,30]
[381375394,1756163445893,-3097.37,0.00041095,30]
[381375395,1756163445903,-480.0,0.00041095,7]
[381375396,1756163445912,-480.0,0.00041095,30]
[381375397,1756163445922,-2981.64,0.00041095,30]
[381375398,1756163445931,-639.66,0.00041095,30]
[381375399,1756163445941,-480.0,0.00041095,30]
[381375400,1756163445951,-1840.53,0.00041095,30]
[381375401,1756163445961,-480.0,0.00041095,30]
[381375402,1756163445971,-739.54,0.00041095,30]
[381375403,1756163445981,-480.0,0.00041095,30]
[381375404,1756163445991,-1067.03,0.00041095,30]
[381375405,1756163446000,-281.34757774,0.00041095,30]
[381375406,1756163446010,-480.0,0.00041095,30]
[381375407,1756163446019,-1000.53,0.00041095,30]
[381375408,1756163446029,-971.1,0.00041095,30]
[381375409,1756163446039,-480.0,0.00041095,30]
[381375410,1756163446048,-9189.65,0.00041095,30]
[381375412,1756163446058,-709.02,0.00041095,30]
[381375414,1756163446067,-480.0,0.00041095,30]
[381375416,1756163446077,-732.2,0.00041095,30]
[381375418,1756163446087,-480.0,0.00041095,30]
[381375420,1756163446097,-480.0,0.00041095,30]
[381375422,1756163446107,-3799.43,0.00041095,30]
[381375424,1756163446116,-3717.36,0.00041095,3]
[381375426,1756163446125,-962.12,0.00041095,30]
[381375428,1756163446134,-480.0,0.00041095,30]
[381375430,1756163446144,-480.0,0.00041095,30]
[381375432,1756163446153,-986.85,0.00041095,30]
[381375434,1756163446162,-1523.51,0.00041095,30]
[381375436,1756163446172,-480.0,0.00041095,30]
[381375438,1756163446181,-2698.97,0.00041095,30]
[381375440,1756163446190,-5782.54,0.00041095,30]
[381375442,1756163446199,-696.85,0.00041095,30]
[381375444,1756163446209,-1139.53,0.00041095,30]
[381375446,1756163446221,-539.99,0.00041095,30]
[381375448,1756163446231,-998.21,0.00041095,30]
[381375450,1756163446240,-480.0,0.00041095,30]
[381375452,1756163446250,-480.0,0.00041095,30]
[381375454,1756163446260,-480.0,0.00041095,30]
[381375456,1756163446270,-480.0,0.00041095,30]
[381375458,1756163446280,-480.0,0.00041095,30]
[381375459,1756163446289,-151.0,0.00041095,30]
[381375461,1756163446299,-480.0,0.00041095,30]
[381375462,1756163446308,-860.13,0.00041095,30]
[381375463,1756163446318,-4020.6,0.00041095,30]
[381375464,1756163446327,-1037.35,0.00041095,30]
[381375465,1756163446337,-877.67,0.00041095,30]
[381375466,1756163446347,-660.08,0.00041095,30]
[381375467,1756163446357,-1587.1,0.00041095,30]
[381375468,1756163446367,-480.0,0.00041095,30]
[381375469,1756163446377,-151.0,0.00041095,30]
[381375470,1756163446387,-151.0,0.00041095,30]
[381375471,1756163446397,-480.0,0.00041095,30]
[381375472,1756163446407,-151.0,0.00041095,30]
[381375473,1756163446417,-151.0,0.00041095,30]
[381375474,1756163446426,-151.0,0.00041095,30]
[381375475,1756163446436,-480.0,0.00041095,30]
[381375476,1756163446446,-497.0,0.00041095,30]
[381375478,1756163446456,-506.94,0.00041095,30]
[381375480,1756163446466,-480.0,0.00041095,30]
[381375482,1756163446476,-480.0,0.00041095,30]
[381375483,1756163446488,-480.0,0.00041095,30]
[381375484,1756163446500,-480.0,0.00041095,30]
[381375485,1756163446510,-1619.92,0.00041095,30]
[381375486,1756163446519,-3076.51,0.00041095,30]
[381375487,1756163446528,-480.0,0.00041095,30]
[381375488,1756163446538,-554.79,0.00041095,30]
[381375489,1756163446548,-795.33,0.00041095,30]
[381375490,1756163446558,-480.0,0.00041095,30]
[381375491,1756163446568,-1510.44,0.00041095,30]
[381375492,1756163446577,-480.0,0.00041095,30]
[381375493,1756163446587,-480.0,0.00041095,30]
[381375494,1756163446597,-878.83,0.00041095,30]
[381375495,1756163446606,-2764.57,0.00041095,30]
[381375496,1756163446616,-480.0,0.00041095,30]
[381375497,1756163446626,-522.13,0.00041095,30]
[381375498,1756163446635,-480.0,0.00041095,30]
[381375499,1756163446645,-730.97,0.00041095,30]
[381375500,1756163446654,-887.94,0.00041095,30]
[381375501,1756163446664,-480.0,0.00041095,30]
[381375502,1756163446673,-480.0,0.00041095,30]
[381375503,1756163446683,-480.0,0.00041095,30]
[381375504,1756163446693,-480.0,0.00041095,30]
[381375505,1756163446702,-480.0,0.00041095,30]
[381375506,1756163446712,-1656.3,0.00041095,30]
[381375507,1756163446724,-1063.85,0.00041095,30]
[381375508,1756163446736,-1074.7,0.00041095,30]
[381375509,1756163446746,-1580.01,0.00041095,30]
[381375510,1756163446755,-480.0,0.00041095,30]
[381375511,1756163446764,-480.0,0.00041095,30]
[381375512,1756163446774,-1600.17,0.00041095,30]
[381375513,1756163446783,-816.17,0.00041095,30]
[381375514,1756163446793,-480.0,0.00041095,30]
[381375515,1756163446803,-480.0,0.00041095,30]
[381375516,1756163446813,-2196.08,0.00041095,30]
[381375517,1756163446823,-480.0,0.00041095,30]
[381375518,1756163446833,-480.0,0.00041095,30]
[381375519,1756163446842,-594.07069676,0.00041095,30]
[381375520,1756163446852,-480.0,0.00041095,30]
[381375521,1756163446862,-480.0,0.00041095,30]
[381375522,1756163446872,-1680.01,0.00041095,30]
[381375523,1756163446882,-490.27,0.00041095,30]
[381375524,1756163446891,-1009.9,0.00041095,30]
[381375525,1756163446901,-640.32,0.00041095,30]
[381375526,1756163446911,-480.0,0.00041095,30]
[381375527,1756163446920,-416.62295633,0.00041095,30]
[381375528,1756163446930,-1085.19,0.00041095,30]
[381375529,1756163446939,-3262.05,0.00041095,30]
[381375530,1756163446949,-558.18,0.00041095,30]
[381375531,1756163446959,-480.0,0.00041095,30]
[381375532,1756163446969,-151.0,0.00041095,30]
[381375533,1756163446978,-151.0,0.00041095,30]
[381375534,1756163446988,-151.0,0.00041095,30]
[381375535,1756163446998,-151.0,0.00041095,30]
[381375536,1756163447007,-151.0,0.00041095,30]
[381375537,1756163447016,-151.0,0.00041095,30]
[381375538,1756163447026,-151.0,0.00041095,30]
[381375539,1756163447035,-151.0,0.00041095,30]
[381375540,1756163447045,-151.0,0.00041095,30]
[381375541,1756163447054,-480.0,0.00041095,30]
[381375542,1756163447064,-151.0,0.00041095,30]
[381375543,1756163447073,-215.342896,0.00041095,30]
[381375544,1756163447083,-480.0,0.00041095,30]
[381375545,1756163447093,-2226.11,0.00041095,30]
[381375546,1756163447102,-480.0,0.00041095,7]
[381375547,1756163447112,-480.0,0.00041095,30]
[381375548,1756163447122,-15247.03,0.00041095,30]
[381375549,1756163447133,-1670.44,0.00041095,30]
[381375550,1756163447145,-480.0,0.00041095,30]
[381375551,1756163447154,-480.0,0.00041095,30]
[381375552,1756163447164,-534.18,0.00041095,30]
[381375553,1756163447173,-151.0,0.00041095,30]
[381375554,1756163447182,-151.0,0.00041095,30]
[381375555,1756163447192,-151.0,0.00041095,30]
[381375556,1756163447201,-4842.94,0.00041095,30]
[381375557,1756163447210,-600.84,0.00041095,30]
[381375558,1756163447220,-5187.19,0.00041095,30]
[381375559,1756163447230,-1347.86,0.00041095,30]
[381375560,1756163447239,-1683.71,0.00041095,30]
[381375561,1756163447249,-480.0,0.00041095,30]
[381375562,1756163447258,-2368.23,0.00041095,30]
[381375563,1756163447268,-487.13119818,0.00041095,30]
[381375564,1756163447277,-480.0,0.00041095,30]
[381375565,1756163447287,-1373.72,0.00041095,30]
[381375566,1756163447296,-480.0,0.00041095,30]
[381375567,1756163447306,-480.0,0.00041095,30]
[381375568,1756163447315,-480.0,0.00041095,30]
[381375569,1756163447325,-1249.68,0.00041095,30]
[381375570,1756163447335,-369.50104855,0.00041095,30]
[381375571,1756163447344,-2819.8,0.00041095,30]
[381375572,1756163447354,-480.0,0.00041095,30]
[381375573,1756163447363,-480.0,0.00041095,30]
[381375574,1756163447373,-480.0,0.00041095,30]
[381375575,1756163447384,-316.5371905,0.00041095,30]
[381375576,1756163447394,-613.16,0.00041095,30]
[381375577,1756163447403,-500.0,0.00041095,120]
[381375578,1756163447412,-480.0,0.00041095,30]
[381375579,1756163447422,-480.0,0.00041095,30]
[381375580,1756163447431,-9255.38,0.00041095,30]
[381375581,1756163447440,-1124.61,0.00041095,30]
[381375582,1756163447450,-1124.45,0.00041095,30]
[381375583,1756163447460,-480.0,0.00041095,30]
[381375584,1756163447469,-480.0,0.00041095,30]
[381375585,1756163447479,-4016.14,0.00041095,30]
[381375586,1756163447536,-480.0,0.00041095,30]
[381375587,1756163447546,-4076.08,0.00041095,30]
[381375588,1756163447556,-1314.28,0.00041095,30]
[381375589,1756163447566,-480.0,0.00041095,30]
[381375590,1756163447576,-480.0,0.00041095,30]
[381375591,1756163447585,-151.0,0.00041095,30]
[381375592,1756163447596,-151.0,0.00041095,30]
[381375593,1756163447605,-7715.15,0.00041095,30]
[381375594,1756163447615,-653.34,0.00041095,30]
[381375595,1756163447624,-480.0,0.00041095,30]
[381375596,1756163447634,-1972.32,0.00041095,30]
[381375597,1756163447644,-1075.15,0.00041095,30]
[381375598,1756163447655,-480.0,0.00041095,30]
[381375599,1756163447664,-480.0,0.00041095,30]
[381375600,1756163447673,-966.81,0.00041095,30]
[381375601,1756163447683,-726.55,0.00041095,30]
[381375602,1756163447692,-3069.1,0.00041095,30]
[381375603,1756163447702,-480.0,0.00041095,30]
[381375604,1756163447711,-194.07504943,0.00041095,30]
[381375605,1756163447721,-1495.78,0.00041095,30]
[381375606,1756163447735,-1556.97,0.00041095,30]
[381375607,1756163447745,-480.0,0.00041095,30]
[381375608,1756163447755,-480.0,0.00041095,30]
[381375609,1756163447766,-1227.55,0.00041095,30]
[381375610,1756163447776,-151.0,0.00041095,30]
[381375611,1756163447785,-151.0,0.00041095,30]
[381375612,1756163447795,-480.0,0.00041095,30]
[381375613,1756163447806,-151.0,0.00041095,30]
[381375614,1756163447816,-151.0,0.00041095,30]
[381375615,1756163447826,-151.0,0.00041095,30]
[381375616,1756163447836,-480.0,0.00041095,30]
[381375617,1756163447846,-277.395612,0.00041095,30]
[381375618,1756163447856,-480.0,0.00041095,30]
[381375619,1756163447866,-480.0,0.00041095,30]
[381375620,1756163447875,-151.0,0.00041095,30]
[381375621,1756163447884,-480.0,0.00041095,30]
[381375622,1756163447896,-151.0,0.00041095,30]
[381375623,1756163447905,-480.0,0.00041095,30]
[381375624,1756163447915,-460.0,0.00041095,30]
[381375625,1756163447926,-991.0,0.00041095,30]
[381375626,1756163447937,-480.0,0.00041095,30]
[381375627,1756163447947,-480.32512807,0.00041095,30]
[381375628,1756163447958,-678.01,0.00041095,30]
[381375629,1756163447968,-1523.91,0.00041095,30]
[381375630,1756163447978,-593.02,0.00041095,30]
[381375631,1756163447987,-3108.48,0.00041095,21]
[381375632,1756163447998,-291.18804829,0.00041095,30]
[381375633,1756163448008,-1000.57,0.00041095,30]
[381375634,1756163448017,-480.0,0.00041095,30]
[381375635,1756163448027,-992.23,0.00041095,30]
[381375636,1756163448036,-480.0,0.00041095,30]
[381375637,1756163448045,-657.05,0.00041095,30]
[381375638,1756163448055,-672.66,0.00041095,30]
[381375639,1756163448064,-2733.52,0.00041095,30]
[381375640,1756163448075,-27580.31,0.00041095,30]
[381375641,1756163448084,-480.0,0.00041095,30]
[381375642,1756163448094,-697.16,0.00041095,30]
[381375643,1756163448103,-3114.67,0.00041095,30]
[381375644,1756163448113,-480.0,0.00041095,30]
[381375645,1756163448122,-7978.56,0.00041095,30]
[381375646,1756163448132,-480.0,0.00041095,30]
[381375647,1756163448141,-480.0,0.00041095,30]
[381375648,1756163448150,-8163.88,0.00041095,30]
[381375649,1756163448160,-696.96,0.00041095,30]
[381375650,1756163448170,-1393.03,0.00041095,30]
[381375651,1756163448179,-728.44,0.00041095,30]
[381375652,1756163448189,-480.0,0.00041095,30]
[381375653,1756163448198,-480.0,0.00041095,30]
[381375654,1756163448208,-607.65,0.00041095,30]
[381375655,1756163448217,-480.0,0.00041095,30]
[381375656,1756163448228,-1807.54,0.00041095,30]
[381375657,1756163448237,-480.0,0.00041095,30]
[381375658,1756163448247,-480.0,0.00041095,30]
[381375659,1756163448256,-1050.68,0.00041095,30]
[381375660,1756163448267,-1185.19,0.00041095,30]
[381375661,1756163448278,-480.0,0.00041095,30]
[381375662,1756163448288,-151.0,0.00041095,30]
[381375663,1756163448298,-151.0,0.00041095,30]
[381375664,1756163448308,-1827.78,0.00041095,30]
[381375665,1756163448318,-480.0,0.00041095,7]
[381375666,1756163448328,-480.0,0.00041095,30]
[381375667,1756163448337,-480.0,0.00041095,30]
[381375668,1756163448347,-855.65,0.00041095,30]
[381375669,1756163448357,-480.0,0.00041095,30]
[381375670,1756163448367,-1016.79,0.00041095,30]
[381375671,1756163448376,-480.0,0.00041095,30]
[381375672,1756163448386,-480.0,0.00041095,30]
[381375673,1756163448395,-4800.66,0.00041095,30]
[381375674,1756163448405,-1470.88,0.00041095,30]
[381375675,1756163448414,-480.0,0.00041095,30]
[381375676,1756163448424,-480.0,0.00041095,30]
[381375677,1756163448433,-480.0,0.00041095,30]
[381375678,1756163448443,-14013.06,0.00041095,30]
[381375679,1756163448453,-155.380628,0.00041095,30]
[381375680,1756163448463,-155.380628,0.00041095,30]
[381375681,1756163448473,-10624.44,0.00041095,30]
[381375682,1756163448483,-155.380628,0.00041095,30]
[381375683,1756163448493,-155.380628,0.00041095,30]
[381375684,1756163448503,-155.380628,0.00041095,30]
[381375685,1756163448513,-155.380628,0.00041095,30]
[381375686,1756163448523,-155.380628,0.00041095,30]
[381375687,1756163448533,-155.380628,0.00041095,30]
[381375688,1756163448543,-989.64,0.00041095,30]
[381375689,1756163448553,-2661.61,0.00041095,30]
[381375690,1756163448563,-155.380628,0.00041095,30]
[381375691,1756163448573,-155.380628,0.00041095,30]
[381375692,1756163448583,-155.380628,0.00041095,30]
[381375693,1756163448594,-155.380628,0.00041095,30]
[381375694,1756163448603,-2814.43,0.00041095,30]
[381375695,1756163448613,-155.380628,0.00041095,30]
[381375696,1756163448623,-155.380628,0.00041095,30]
[381375697,1756163448633,-480.0,0.00041095,30]
[381375698,1756163448643,-480.0,0.00041095,30]
[381375699,1756163448652,-155.380628,0.00041095,30]
[381375700,1756163448662,-608.28,0.00041095,30]
[381375701,1756163448672,-155.380628,0.00041095,30]
[381375702,1756163448682,-155.380628,0.00041095,30]
[381375703,1756163448691,-480.0,0.00041095,2]
[381375704,1756163448701,-155.380628,0.00041095,30]
[381375705,1756163448711,-155.380628,0.00041095,30]
[381375706,1756163448722,-155.380627,0.00041095,30]
[381375707,1756163448737,-846.09,0.00041095,30]
[381375708,1756163448748,-15948.41,0.000411,14]
[381375709,1756163448757,-2430.86,0.000411,7]
[381375710,1756163448768,-7638.84,0.000411,14]
[381375711,1756163448778,-1500.0,0.000411,28]
[381375712,1756163448788,-1500.0,0.000411,28]
[381375713,1756163448797,-1500.0,0.000411,28]
[381375714,1756163448808,-1500.0,0.000411,28]
[381375715,1756163448819,-1500.0,0.000411,28]
[381375716,1756163448829,-1500.0,0.000411,28]
[381375717,1756163448839,-1500.0,0.000411,28]
[381375718,1756163448849,-1500.0,0.000411,28]
[381375719,1756163448859,-410.385746,0.000411,28]
[381375720,1756163448869,-363.52,0.00041144,3]
[381375721,1756163448879,-500.0,0.00041154,31]
[381375722,1756163448890,-2200.0,0.00041195,14]
[381375723,1756163448900,-8466.0929217,0.00041269,2]
[381375724,1756163448910,-4327.23248144,0.00041269,2]
[381375725,1756163448920,-155.91627867,0.00041269,120]
[381375726,1756163448930,-1000.0,0.0004128,14]
[381375727,1756163448940,-500.0,0.00041292,30]
[381375728,1756163448950,-151.0,0.000413,10]
[381375729,1756163448960,-1000.0,0.000413,14]
[381375730,1756163448971,-1068.62,0.00041313,120]
[381375731,1756163448981,-1000.0,0.0004136,120]
[381375732,1756163448991,-207.0,0.0004136,30]
[381375733,1756163449001,-500.0,0.0004136,30]
[381375734,1756163449011,-1000.0,0.00041368,120]
[381375735,1756163449021,-1266.69295581,0.00041369,61]
[381375736,1756163449031,-480.0,0.00041369,30]
[381375737,1756163449040,-437.59294382,0.00041369,30]
[381375738,1756163449050,-335.87980088,0.00041369,30]
[381375739,1756163449060,-480.0,0.00041369,30]
[381375740,1756163449069,-480.0,0.00041369,30]
[381375741,1756163449080,-526.3,0.00041369,30]
[381375742,1756163449090,-480.0,0.00041369,30]
[381375743,1756163449099,-480.0,0.00041369,30]
[381375744,1756163449109,-480.0,0.00041369,30]
[381375745,1756163449118,-427.95846731,0.00041369,30]
[381375746,1756163449128,-480.0,0.00041369,30]
[381375747,1756163449137,-480.0,0.00041369,30]
[381375748,1756163449146,-577.4,0.00041369,30]
[381375749,1756163449155,-401.62746917,0.00041369,30]
[381375750,1756163449165,-1260.72,0.00041369,30]
[381375751,1756163449174,-480.0,0.00041369,30]
[381375752,1756163449184,-480.0,0.00041369,30]
[381375753,1756163449193,-480.0,0.00041369,30]
[381375754,1756163449203,-1257.72,0.00041369,30]
[381375755,1756163449213,-653.28,0.00041369,30]
[381375756,1756163449223,-401.29242061,0.00041369,30]
[381375757,1756163449233,-480.0,0.00041369,30]
[381375758,1756163449243,-480.0,0.00041369,30]
[381375759,1756163449252,-480.0,0.00041369,30]
[381375760,1756163449261,-480.0,0.00041369,30]
[381375761,1756163449271,-489.61,0.00041369,30]
[381375762,1756163449281,-480.0,0.00041369,30]
[381375763,1756163449290,-480.0,0.00041369,30]
[381375764,1756163449299,-486.33,0.00041369,30]
[381375765,1756163449309,-480.0,0.00041369,30]
[381375766,1756163449318,-1091.35,0.00041369,30]
[381375767,1756163449328,-480.0,0.00041369,30]
[381375768,1756163449337,-880.46,0.00041369,30]
[381375769,1756163449346,-480.0,0.00041369,30]
[381375770,1756163449356,-633.33,0.00041369,30]
[381375771,1756163449365,-1000.0,0.00041369,30]
[381375772,1756163449375,-731.97,0.00041369,30]
[381375773,1756163449384,-238.52633767,0.00041369,30]
[381375774,1756163458136,434.6299772,0.00027167,2]
[381375775,1756163459200,325.9724829,0.00024967,2]
[381375776,1756163507259,-165.71,0.00029028,15]
[381375777,1756163507283,-120.6498643,0.00029128,15]
[381375778,1756163612238,-45.0601357,0.00029128,15]
[381375779,1756163612263,-165.71,0.00029228,15]
[381375780,1756163612287,-165.74,0.00029328,15]
[381375781,1756163612510,-123.4898643,0.00030687,2]
[381375782,1756163613272,-36.5101357,0.00030687,2]
[381375783,1756163613294,-179.53020932,0.00030687,2]
[381375784,1756163615953,-36.5101357,0.00030687,2]
[381375785,1756163615985,-162.4898643,0.00030687,2]
[381375786,1756163717173,-209.0,0.00030686,2]
[381375789,1756163740519,165.984723,0.00013699,2]
[381375790,1756163747141,-291.0,0.00030686,2]
[381375791,1756163749279,-209.0,0.00030686,2]
[381375794,1756164402131,-160.0,0.00030683,2]
[381375795,1756164402152,-117.32128571,0.00030683,2]
[381375796,1756164427301,619.06445511,0.000281,2]
[381375797,1756164428097,-42.67871429,0.00030683,2]
[381375798,1756164428117,-376.30788339,0.00030683,2]
[381375799,1756164428141,-653.0,0.00030686,2]
[381375800,1756164428161,-400.0,0.00030686,2]
[381375801,1756164428180,-1831.86180722,0.00030687,2]
[381375802,1756164429088,-1890.61555517,0.00030687,2]
[381375808,1756164483299,-372.68,0.00030687,2]
[381375809,1756164485927,-379.57,0.00030687,2]
[381375810,1756164486334,4500.0,0.000281,2]
[381375811,1756164487557,-650.7,0.00030687,2]
[381375812,1756164493242,-401.27,0.00030687,2]
[381375814,1756164512194,-451.87,0.00030687,2]
[381375815,1756164514422,-500.0,0.00030687,2]
[381375816,1756164517335,-407.22699692,0.00030687,2]
[381375817,1756164520286,-242.18752477,0.00030687,2]
[381375818,1756164522104,-406.92890959,0.00030687,2]
[381375819,1756164525231,6308.39561084,0.0002465,2]
[381375820,1756164525707,-1412.71589103,0.00030687,2]
[381375821,1756164525730,-160.0,0.00030891,2]
[381375822,1756164525753,-159.0,0.00031,120]
[381375823,1756164525778,-400.0,0.00031299,2]
[381375824,1756164525806,-33.7086099,0.000313,20]
[381375825,1756164528400,-266.2913901,0.000313,20]
[381375826,1756164528429,-300.0,0.000313,20]
[381375827,1756164528458,-68.36519818,0.000313,20]
[381375828,1756164530554,2800.08108921,0.000281,2]
[381375829,1756164532253,-153.8462533,0.000309,120]
[381375831,1756164534785,-45.1537467,0.000309,120]
[381375832,1756164534809,-199.0,0.000309,120]
[381375833,1756164534836,-160.69,0.000313,20]
[381375835,1756164537336,-70.94480182,0.000313,20]
[381375836,1756164537366,-300.0,0.000313,20]
[381375837,1756164537397,-129.35328551,0.000313,20]
[381375838,1756164542615,-160.0,0.00030882,2]
[381375839,1756164542639,-11.58,0.000313,5]
[381375841,1756164544295,-160.0,0.00030882,2]
[381375842,1756164544319,-32.26312927,0.00031299,2]
[381375844,1756164546085,-215.73687073,0.00031299,2]
[381375845,1756164546112,-488.42,0.000313,5]
[381375846,1756164546132,-500.0,0.000313,5]
[381375847,1756164546153,-462.09935512,0.000313,5]
[381375848,1756164546174,-3323.9282013,0.000313,2]
[381375849,1756164546371,558.69,0.000281,2]
[381375850,1756164547205,-461.08374408,0.000313,2]
[381375851,1756164549358,-349.10312927,0.000313,2]
[381375852,1756164568120,-398.50914869,0.00031784,2]
[381375853,1756164568143,-333.03928756,0.00031784,2]
[381375854,1756164568164,-1594.03659475,0.00031787,2]
[381375855,1756164568188,-1082.03633902,0.00031792,10]
[381375856,1756164606409,-284.5923998,0.00030776,2]
[381375871,1756164632476,-199.0,0.00031692,10]
[381375872,1756164632486,-184.3653211,0.00031792,10]
[381375873,1756164632497,-399.70554934,0.00031792,10]
[381375874,1756164632519,-414.77912956,0.00031792,10]
[381375875,1756164632529,-621.05,0.00031795,3]
[381375876,1756164632539,-40938.23303658,0.00031802,20]
[381375880,1756164638270,-1972.81513221,0.00031802,20]
[381375881,1756164638322,-205581.54531796,0.00031802,20]
[381375882,1756164638334,-73975.73186197,0.00031802,20]
[381375937,1756165080159,612.62,0.000281,2]
[381375940,1756165551088,-1033.159576,0.000316,7]
[381375941,1756165551109,-2305.08021865,0.00031699,2]
[381375942,1756165631083,-155.55774647,0.00031686,2]
[381375943,1756165631105,-1446.7048452,0.00031764,2]
[381375944,1756165631126,-772.59,0.00031789,3]
[381375945,1756165631147,-300.0,0.00031795,2]
[381375946,1756165631167,-160.0,0.00031796,2]
[381375947,1756165631188,-232.4766599,0.00031796,2]
[381375948,1756165631209,-249.09906791,0.00031796,2]
[381375949,1756165631232,-500.0,0.00031796,2]
[381375950,1756165631253,-500.0,0.00031796,2]
[381375951,1756165631275,-500.0,0.00031796,2]
[381375952,1756165631301,-500.0,0.00031796,2]